[Event "*** SCC Grand Prix: Titled Tuesday Blitz"]
[Site "Chess.com"]
[Date "2020.08.11"]
[Round "1"]
[White "deribas12345"]
[Black "annamaja"]
[Result "1-0"]
[WhiteElo "2598"]
[BlackElo "2243"]
[TimeControl "180+1"]
[EndTime "10:05:13 PDT"]
[Termination "deribas12345 won on time"]

1. d4 {[%clk 0:03:00.9]} 1... Nf6 {[%clk 0:02:59.5]} 2. c4 {[%clk 0:02:56.9]}
2... e6 {[%clk 0:02:57.7]} 3. Nc3 {[%clk 0:02:54.9]} 3... Bb4 {[%clk 0:02:55.9]}
4. f3 {[%clk 0:02:54.1]} 4... d5 {[%clk 0:02:52.2]} 5. a3 {[%clk 0:02:53.4]}
5... Bxc3+ {[%clk 0:02:48]} 6. bxc3 {[%clk 0:02:52.9]} 6... c5 {[%clk
0:02:33.1]} 7. e3 {[%clk 0:02:51.9]} 7... O-O {[%clk 0:02:30.5]} 8. Bd3 {[%clk
0:02:51.3]} 8... b6 {[%clk 0:02:13.6]} 9. cxd5 {[%clk 0:02:50]} 9... exd5 {[%clk
0:02:07.4]} 10. Ne2 {[%clk 0:02:48.8]} 10... Ba6 {[%clk 0:01:57.9]} 11. Bxa6
{[%clk 0:02:48.1]} 11... Nxa6 {[%clk 0:01:58.8]} 12. O-O {[%clk 0:02:48]} 12...
Re8 {[%clk 0:01:51.8]} 13. g4 {[%clk 0:02:47.2]} 13... Qd7 {[%clk 0:01:37.4]}
14. Ra2 {[%clk 0:02:39.9]} 14... Nc7 {[%clk 0:01:19.6]} 15. Ng3 {[%clk
0:02:37.7]} 15... Nb5 {[%clk 0:01:15]} 16. Qd3 {[%clk 0:02:27.1]} 16... cxd4
{[%clk 0:00:51]} 17. cxd4 {[%clk 0:02:23.7]} 17... Rac8 {[%clk 0:00:51.3]} 18.
g5 {[%clk 0:02:20.8]} 18... Rc3 {[%clk 0:00:25.5]} 19. Qd2 {[%clk 0:02:18.7]}
19... Ng4 {[%clk 0:00:16.2]} 20. fxg4 {[%clk 0:02:15.9]} 20... Qc7 {[%clk
0:00:11.4]} 21. Nf5 {[%clk 0:02:07.9]} 21... a5 {[%clk 0:00:04]} 22. a4 {[%clk
0:02:07.1]} 22... Na7 {[%clk 0:00:04.1]} 23. Ba3 {[%clk 0:02:07]} 23... Nc8
{[%clk 0:00:03.1]} 24. Qf2 {[%clk 0:02:04.7]} 24... Re4 {[%clk 0:00:02.3]} 25.
h3 {[%clk 0:01:51.4]} 1-0

[Event "*** SCC Grand Prix: Titled Tuesday Blitz"]
[Site "Chess.com"]
[Date "2020.08.11"]
[Round "1"]
[White "Thipsay"]
[Black "a3aki"]
[Result "1-0"]
[WhiteElo "2493"]
[BlackElo "2048"]
[TimeControl "180+1"]
[EndTime "10:05:13 PDT"]
[Termination "Thipsay won by resignation"]

1. e4 {[%clk 0:02:59.1]} 1... e5 {[%clk 0:02:59.7]} 2. Nf3 {[%clk 0:02:58.2]}
2... Nc6 {[%clk 0:03:00.3]} 3. Bb5 {[%clk 0:02:57.6]} 3... a6 {[%clk 0:03:00.8]}
4. Ba4 {[%clk 0:02:57.6]} 4... Nf6 {[%clk 0:03:00.9]} 5. O-O {[%clk 0:02:57.5]}
5... Be7 {[%clk 0:03:01.3]} 6. Re1 {[%clk 0:02:57.6]} 6... b5 {[%clk 0:03:01.4]}
7. Bb3 {[%clk 0:02:57.3]} 7... O-O {[%clk 0:03:02.1]} 8. c3 {[%clk 0:02:56.7]}
8... d5 {[%clk 0:03:02.3]} 9. exd5 {[%clk 0:02:56.6]} 9... Nxd5 {[%clk
0:03:02.8]} 10. d3 {[%clk 0:02:56.1]} 10... Bf6 {[%clk 0:02:57.6]} 11. Nbd2
{[%clk 0:02:55.4]} 11... Bg4 {[%clk 0:02:56.9]} 12. Ne4 {[%clk 0:02:54]} 12...
Nb6 {[%clk 0:02:46.6]} 13. h3 {[%clk 0:02:52.9]} 13... Bh5 {[%clk 0:02:46.1]}
14. Be3 {[%clk 0:02:44]} 14... Re8 {[%clk 0:02:37.7]} 15. Qe2 {[%clk 0:02:30.9]}
15... a5 {[%clk 0:02:35.6]} 16. a3 {[%clk 0:02:29.5]} 16... a4 {[%clk
0:02:32.2]} 17. Ba2 {[%clk 0:02:28.2]} 17... Nc8 {[%clk 0:02:26.5]} 18. Rad1
{[%clk 0:02:25.7]} 18... Nd6 {[%clk 0:02:25.4]} 19. g4 {[%clk 0:02:22.8]} 19...
Bg6 {[%clk 0:02:24.1]} 20. Nxf6+ {[%clk 0:02:22.9]} 20... Qxf6 {[%clk
0:02:22.1]} 21. Bg5 {[%clk 0:02:22.9]} 21... Bxd3 {[%clk 0:02:12.7]} 22. Qxd3
{[%clk 0:02:09.1]} 22... Qg6 {[%clk 0:02:11.9]} 23. Qxg6 {[%clk 0:02:08.2]}
23... hxg6 {[%clk 0:02:11.7]} 24. Bd5 {[%clk 0:02:08.3]} 24... Ra6 {[%clk
0:02:09.2]} 25. Bxc6 {[%clk 0:02:05.6]} 25... Rxc6 {[%clk 0:02:09]} 26. Rxe5
{[%clk 0:02:04]} 26... Rxe5 {[%clk 0:02:07.1]} 27. Nxe5 {[%clk 0:02:03.8]} 27...
Rc5 {[%clk 0:02:07.7]} 28. Bf4 {[%clk 0:02:02.8]} 28... g5 {[%clk 0:02:04.8]}
29. Bg3 {[%clk 0:02:02.7]} 29... f6 {[%clk 0:02:04.8]} 30. Nd3 {[%clk
0:02:02.4]} 30... Rd5 {[%clk 0:02:04.7]} 31. f3 {[%clk 0:02:01.3]} 31... Nc4
{[%clk 0:02:04.5]} 32. Kf2 {[%clk 0:01:58.6]} 32... Kf7 {[%clk 0:01:55.2]} 33.
Ke2 {[%clk 0:01:58.7]} 33... c5 {[%clk 0:01:37.6]} 34. Bf2 {[%clk 0:01:56.3]}
34... b4 {[%clk 0:01:37.9]} 35. cxb4 {[%clk 0:01:54]} 35... cxb4 {[%clk
0:01:37.5]} 36. Nxb4 {[%clk 0:01:53.4]} 36... Rxd1 {[%clk 0:01:36.7]} 37. Kxd1
{[%clk 0:01:53.1]} 37... Nxb2+ {[%clk 0:01:37.3]} 38. Kc1 {[%clk 0:01:52.9]}
38... Nc4 {[%clk 0:01:37.4]} 39. Nc2 {[%clk 0:01:53.3]} 39... Ke6 {[%clk
0:01:36.7]} 40. Bc5 {[%clk 0:01:50.4]} 40... Kd5 {[%clk 0:01:36.8]} 41. Bb4
{[%clk 0:01:48.9]} 41... Ne5 {[%clk 0:01:35.5]} 42. Ne1 {[%clk 0:01:47.7]} 42...
Kc4 {[%clk 0:01:35.4]} 43. Bf8 {[%clk 0:01:46.9]} 43... g6 {[%clk 0:01:34.4]}
44. Be7 {[%clk 0:01:46.6]} 44... f5 {[%clk 0:01:32.1]} 45. Bxg5 {[%clk
0:01:45.5]} 45... fxg4 {[%clk 0:01:32.8]} 46. fxg4 {[%clk 0:01:44.8]} 46... Nc6
{[%clk 0:01:31.5]} 47. Kd2 {[%clk 0:01:43.1]} 47... Kb3 {[%clk 0:01:31.6]} 48.
Nc2 {[%clk 0:01:42.7]} 48... Ne5 {[%clk 0:01:31.2]} 49. Be7 {[%clk 0:01:40]}
49... Nf3+ {[%clk 0:01:28.5]} 50. Kc1 {[%clk 0:01:39.7]} 50... Ng1 {[%clk
0:01:26.7]} 51. h4 {[%clk 0:01:39.4]} 51... Ne2+ {[%clk 0:01:26.1]} 52. Kd2
{[%clk 0:01:39.4]} 52... Ng3 {[%clk 0:01:25.5]} 53. Nd4+ {[%clk 0:01:38]} 53...
Kc4 {[%clk 0:01:24.6]} 54. Ne2 {[%clk 0:01:38.1]} 54... Ne4+ {[%clk 0:01:24.7]}
55. Ke3 {[%clk 0:01:37.7]} 1-0

[Event "*** SCC Grand Prix: Titled Tuesday Blitz"]
[Site "Chess.com"]
[Date "2020.08.11"]
[Round "1"]
[White "JRenatoMaranhao"]
[Black "meoluoi91"]
[Result "0-1"]
[WhiteElo "2049"]
[BlackElo "2493"]
[TimeControl "180+1"]
[EndTime "10:05:13 PDT"]
[Termination "meoluoi91 won on time"]

1. e4 {[%clk 0:02:58.8]} 1... c6 {[%clk 0:02:59.8]} 2. d4 {[%clk 0:02:57.6]}
2... d5 {[%clk 0:03:00.7]} 3. e5 {[%clk 0:02:55]} 3... g6 {[%clk 0:03:00.1]} 4.
f4 {[%clk 0:02:47.2]} 4... Bg7 {[%clk 0:03:00.1]} 5. Nf3 {[%clk 0:02:47.3]} 5...
Nh6 {[%clk 0:02:59.7]} 6. Be2 {[%clk 0:02:30.2]} 6... O-O {[%clk 0:02:59.1]} 7.
O-O {[%clk 0:02:29.7]} 7... Qb6 {[%clk 0:02:58.4]} 8. Nc3 {[%clk 0:02:07.1]}
8... f6 {[%clk 0:02:58]} 9. a4 {[%clk 0:02:00.5]} 9... a5 {[%clk 0:02:57.5]} 10.
Ra3 {[%clk 0:01:51.3]} 10... Na6 {[%clk 0:02:45.9]} 11. Rb3 {[%clk 0:01:44.8]}
11... Qd8 {[%clk 0:02:44.5]} 12. h3 {[%clk 0:01:06.1]} 12... Nb4 {[%clk
0:02:41.5]} 13. Nb1 {[%clk 0:00:58.8]} 13... Bf5 {[%clk 0:02:37.9]} 14. Ne1
{[%clk 0:00:51.5]} 14... Qc8 {[%clk 0:02:03.7]} 15. g4 {[%clk 0:00:50.3]} 15...
Be6 {[%clk 0:02:03.4]} 16. c3 {[%clk 0:00:41.1]} 16... Na6 {[%clk 0:02:02.9]}
17. Nd2 {[%clk 0:00:20.4]} 17... c5 {[%clk 0:02:02.4]} 18. Rb6 {[%clk 0:00:10]}
18... cxd4 {[%clk 0:01:54.9]} 19. cxd4 {[%clk 0:00:07.5]} 19... fxe5 {[%clk
0:01:54.4]} 20. fxe5 {[%clk 0:00:03.5]} 20... Nc7 {[%clk 0:01:46.5]} 0-1

[Event "*** SCC Grand Prix: Titled Tuesday Blitz"]
[Site "Chess.com"]
[Date "2020.08.11"]
[Round "1"]
[White "carlsen1001"]
[Black "Volodar_Murzin"]
[Result "0-1"]
[WhiteElo "2340"]
[BlackElo "2688"]
[TimeControl "180+1"]
[EndTime "10:05:14 PDT"]
[Termination "Volodar_Murzin won by resignation"]

1. Nf3 {[%clk 0:02:58.7]} 1... d5 {[%clk 0:02:55.1]} 2. c4 {[%clk 0:02:58]} 2...
c6 {[%clk 0:02:52.4]} 3. d4 {[%clk 0:02:57.8]} 3... Nf6 {[%clk 0:02:51.4]} 4.
Nc3 {[%clk 0:02:57.3]} 4... a6 {[%clk 0:02:51.3]} 5. cxd5 {[%clk 0:02:54.3]}
5... cxd5 {[%clk 0:02:50.1]} 6. Bf4 {[%clk 0:02:54.2]} 6... Nc6 {[%clk
0:02:49.5]} 7. e3 {[%clk 0:02:53.4]} 7... Bf5 {[%clk 0:02:48.4]} 8. h3 {[%clk
0:02:51.4]} 8... e6 {[%clk 0:02:45.4]} 9. Bd3 {[%clk 0:02:45.1]} 9... Bxd3
{[%clk 0:02:42.3]} 10. Qxd3 {[%clk 0:02:44.3]} 10... Bd6 {[%clk 0:02:42.8]} 11.
Bxd6 {[%clk 0:02:28.4]} 11... Qxd6 {[%clk 0:02:43.7]} 12. O-O {[%clk 0:02:28.8]}
12... O-O {[%clk 0:02:41.7]} 13. Rac1 {[%clk 0:02:28.1]} 13... Rfc8 {[%clk
0:02:41.4]} 14. Na4 {[%clk 0:02:12.9]} 14... Rc7 {[%clk 0:02:36.1]} 15. a3
{[%clk 0:01:55.7]} 15... Rac8 {[%clk 0:02:25.2]} 16. Rc2 {[%clk 0:01:49.4]}
16... Ne4 {[%clk 0:01:48.9]} 17. Rfc1 {[%clk 0:01:46.3]} 17... Na5 {[%clk
0:01:46.7]} 18. Ne5 {[%clk 0:01:00.8]} 18... f6 {[%clk 0:01:41.5]} 19. Nf3
{[%clk 0:00:55.7]} 19... Nc4 {[%clk 0:01:37.7]} 20. Nc3 {[%clk 0:00:34.2]} 20...
Nxb2 {[%clk 0:01:30.1]} 21. Rxb2 {[%clk 0:00:26.8]} 21... Rxc3 {[%clk
0:01:28.6]} 22. Rxc3 {[%clk 0:00:26.1]} 22... Rxc3 {[%clk 0:01:29.5]} 23. Qd1
{[%clk 0:00:25.8]} 23... Qxa3 {[%clk 0:01:27.1]} 0-1

[Event "*** SCC Grand Prix: Titled Tuesday Blitz"]
[Site "Chess.com"]
[Date "2020.08.11"]
[Round "1"]
[White "JesseKraai"]
[Black "DFeco"]
[Result "1-0"]
[WhiteElo "2532"]
[BlackElo "2167"]
[TimeControl "180+1"]
[EndTime "10:05:19 PDT"]
[Termination "JesseKraai won by resignation"]

1. Nf3 {[%clk 0:03:00.9]} 1... d5 {[%clk 0:02:59.2]} 2. c4 {[%clk 0:03:00.9]}
2... d4 {[%clk 0:02:58.9]} 3. g3 {[%clk 0:03:00.7]} 3... Nf6 {[%clk 0:02:58.4]}
4. Bg2 {[%clk 0:03:00.8]} 4... Nc6 {[%clk 0:02:57.5]} 5. O-O {[%clk 0:03:00.8]}
5... e5 {[%clk 0:02:57.3]} 6. d3 {[%clk 0:03:01.1]} 6... Bc5 {[%clk 0:02:46.8]}
7. b4 {[%clk 0:02:57]} 7... Bxb4 {[%clk 0:02:46.7]} 8. Nxe5 {[%clk 0:02:56.2]}
8... Nxe5 {[%clk 0:02:40]} 9. Qa4+ {[%clk 0:02:55.9]} 9... c6 {[%clk 0:02:39.7]}
10. Qxb4 {[%clk 0:02:55.1]} 10... Qe7 {[%clk 0:02:37.4]} 11. Qxe7+ {[%clk
0:02:48.8]} 11... Kxe7 {[%clk 0:02:37.3]} 12. Ba3+ {[%clk 0:02:49.4]} 12... Kd7
{[%clk 0:02:26.2]} 13. Bc5 {[%clk 0:02:44.2]} 13... Re8 {[%clk 0:02:21.8]} 14.
Bxd4 {[%clk 0:02:43.3]} 14... Kc7 {[%clk 0:02:16.1]} 15. Nc3 {[%clk 0:02:40.2]}
15... Bg4 {[%clk 0:02:10.2]} 16. h3 {[%clk 0:02:36.4]} 16... Bh5 {[%clk
0:01:59.9]} 17. g4 {[%clk 0:02:35.1]} 17... Bg6 {[%clk 0:01:59.4]} 18. Bxe5+
{[%clk 0:02:27.4]} 18... Rxe5 {[%clk 0:01:57.2]} 19. f4 {[%clk 0:02:27.4]} 19...
Re3 {[%clk 0:01:46]} 20. f5 {[%clk 0:02:26.9]} 20... Bh5 {[%clk 0:01:40.1]} 21.
gxh5 {[%clk 0:02:21.8]} 21... Nxh5 {[%clk 0:01:40.3]} 22. Rf3 {[%clk 0:02:18.4]}
22... Rae8 {[%clk 0:01:37.9]} 23. Rxe3 {[%clk 0:02:16.4]} 23... Rxe3 {[%clk
0:01:37.9]} 24. Kf2 {[%clk 0:02:16.1]} 24... Re5 {[%clk 0:01:34.6]} 25. e4
{[%clk 0:02:11.3]} 25... Nf4 {[%clk 0:01:33.8]} 26. Bf1 {[%clk 0:02:09.6]} 26...
Ra5 {[%clk 0:01:30.1]} 27. Ke3 {[%clk 0:02:06.5]} 27... g5 {[%clk 0:01:29.2]}
28. fxg6 {[%clk 0:02:01.3]} 28... Nxg6 {[%clk 0:01:28]} 29. Be2 {[%clk
0:01:56.6]} 29... f5 {[%clk 0:01:26.7]} 30. exf5 {[%clk 0:01:54.3]} 30... Rxf5
{[%clk 0:01:25.6]} 31. Rf1 {[%clk 0:01:53.2]} 31... Re5+ {[%clk 0:01:25.5]} 32.
Kd2 {[%clk 0:01:52.3]} 32... Re7 {[%clk 0:01:25.1]} 33. Ne4 {[%clk 0:01:48.5]}
33... Ne5 {[%clk 0:01:18.4]} 34. Ke3 {[%clk 0:01:41.4]} 34... b6 {[%clk
0:01:14.7]} 35. d4 {[%clk 0:01:40.1]} 35... Nf7 {[%clk 0:01:04.8]} 36. Bd3
{[%clk 0:01:37.8]} 36... Ng5 {[%clk 0:01:02.3]} 37. h4 {[%clk 0:01:32.1]} 37...
Ne6 {[%clk 0:00:57.7]} 38. d5 {[%clk 0:01:31.1]} 38... cxd5 {[%clk 0:00:53.2]}
39. cxd5 {[%clk 0:01:30.4]} 1-0

[Event "*** SCC Grand Prix: Titled Tuesday Blitz"]
[Site "Chess.com"]
[Date "2020.08.11"]
[Round "1"]
[White "Chesswizard_2007"]
[Black "HouseOfDurin"]
[Result "1-0"]
[WhiteElo "2497"]
[BlackElo "2082"]
[TimeControl "180+1"]
[EndTime "10:05:19 PDT"]
[Termination "Chesswizard_2007 won by checkmate"]

1. Nf3 {[%clk 0:02:59.5]} 1... c5 {[%clk 0:02:59.7]} 2. c3 {[%clk 0:02:55.5]}
2... Nc6 {[%clk 0:02:59.8]} 3. d4 {[%clk 0:02:54.4]} 3... cxd4 {[%clk
0:03:00.7]} 4. cxd4 {[%clk 0:02:55]} 4... d5 {[%clk 0:03:01.3]} 5. Nc3 {[%clk
0:02:53.4]} 5... g6 {[%clk 0:03:01.7]} 6. h4 {[%clk 0:02:52.3]} 6... Bg7 {[%clk
0:03:02.1]} 7. h5 {[%clk 0:02:52.8]} 7... Bg4 {[%clk 0:02:58.6]} 8. h6 {[%clk
0:02:51.7]} 8... Bf6 {[%clk 0:02:55.9]} 9. Be3 {[%clk 0:02:45.7]} 9... Bxf3
{[%clk 0:02:42.3]} 10. exf3 {[%clk 0:02:37.7]} 10... Qb6 {[%clk 0:02:41.8]} 11.
Bb5 {[%clk 0:02:37.4]} 11... e6 {[%clk 0:02:16.3]} 12. O-O {[%clk 0:02:31.6]}
12... Ne7 {[%clk 0:02:15.6]} 13. Qd3 {[%clk 0:02:11.1]} 13... O-O {[%clk
0:02:13.4]} 14. Na4 {[%clk 0:02:10.1]} 14... Qd8 {[%clk 0:01:51.8]} 15. Nc5
{[%clk 0:02:08.4]} 15... a6 {[%clk 0:01:35]} 16. Nxb7 {[%clk 0:02:06]} 16... Qb6
{[%clk 0:01:34.7]} 17. Bxc6 {[%clk 0:02:06.1]} 17... Nxc6 {[%clk 0:01:33.6]} 18.
Nc5 {[%clk 0:02:06.4]} 18... Ra7 {[%clk 0:01:07.8]} 19. b3 {[%clk 0:02:03]}
19... Nb4 {[%clk 0:01:03.9]} 20. Qd2 {[%clk 0:02:01.4]} 20... Rc8 {[%clk
0:00:56.2]} 21. Rfc1 {[%clk 0:01:57.8]} 21... Rac7 {[%clk 0:00:55.3]} 22. Bg5
{[%clk 0:01:55.9]} 22... Bh8 {[%clk 0:00:37]} 23. Bf4 {[%clk 0:01:53.1]} 23...
e5 {[%clk 0:00:32.9]} 24. Na4 {[%clk 0:01:50.7]} 24... Rxc1+ {[%clk 0:00:26.8]}
25. Rxc1 {[%clk 0:01:51.6]} 25... Rxc1+ {[%clk 0:00:18.7]} 26. Qxc1 {[%clk
0:01:52.5]} 26... Qb7 {[%clk 0:00:13.7]} 27. Bxe5 {[%clk 0:01:51.6]} 27... Nd3
{[%clk 0:00:11.5]} 28. Qg5 {[%clk 0:01:47.6]} 28... Bxe5 {[%clk 0:00:09]} 29.
Qd8# {[%clk 0:01:46.9]} 1-0

[Event "*** SCC Grand Prix: Titled Tuesday Blitz"]
[Site "Chess.com"]
[Date "2020.08.11"]
[Round "1"]
[White "Anton_Demchenko"]
[Black "onnoelgersma"]
[Result "1-0"]
[WhiteElo "2824"]
[BlackElo "2404"]
[TimeControl "180+1"]
[EndTime "10:05:25 PDT"]
[Termination "Anton_Demchenko won on time"]

1. e4 {[%clk 0:03:00.9]} 1... c6 {[%clk 0:03:00.3]} 2. Nf3 {[%clk 0:03:00.3]}
2... d5 {[%clk 0:03:00.9]} 3. d3 {[%clk 0:03:00.9]} 3... g6 {[%clk 0:02:55]} 4.
Nbd2 {[%clk 0:02:56.8]} 4... Bg7 {[%clk 0:02:54.5]} 5. g3 {[%clk 0:02:57.4]}
5... e5 {[%clk 0:02:53.5]} 6. Bg2 {[%clk 0:02:57.7]} 6... Ne7 {[%clk 0:02:54]}
7. O-O {[%clk 0:02:58.1]} 7... O-O {[%clk 0:02:54.3]} 8. c3 {[%clk 0:02:55.5]}
8... Bg4 {[%clk 0:02:52.6]} 9. h3 {[%clk 0:02:55.2]} 9... Bxf3 {[%clk
0:02:50.6]} 10. Nxf3 {[%clk 0:02:55.2]} 10... Nd7 {[%clk 0:02:49.7]} 11. Re1
{[%clk 0:02:49.3]} 11... Qc7 {[%clk 0:02:46]} 12. b4 {[%clk 0:02:42]} 12... a5
{[%clk 0:02:43.9]} 13. a4 {[%clk 0:02:39.5]} 13... f5 {[%clk 0:02:36.6]} 14. Qb3
{[%clk 0:02:33.8]} 14... h6 {[%clk 0:02:23]} 15. Ba3 {[%clk 0:02:32.3]} 15...
Rae8 {[%clk 0:01:39.8]} 16. bxa5 {[%clk 0:02:30.8]} 16... Kh7 {[%clk 0:01:30]}
17. Rab1 {[%clk 0:02:19.2]} 17... dxe4 {[%clk 0:00:50.1]} 18. dxe4 {[%clk
0:02:20.1]} 18... fxe4 {[%clk 0:00:35.8]} 19. Nd2 {[%clk 0:02:19.8]} 19... e3
{[%clk 0:00:19.3]} 20. Rxe3 {[%clk 0:02:19.1]} 20... Nf5 {[%clk 0:00:19.8]} 21.
Ree1 {[%clk 0:01:47.1]} 21... Rg8 {[%clk 0:00:09]} 22. Qxb7 {[%clk 0:01:46.7]}
22... Rc8 {[%clk 0:00:05.1]} 23. a6 {[%clk 0:01:44.6]} 23... Nf6 {[%clk
0:00:01.8]} 24. Ne4 {[%clk 0:01:38.5]} 24... Nxe4 {[%clk 0:00:01.7]} 25. Bxe4
{[%clk 0:01:39.4]} 1-0

[Event "*** SCC Grand Prix: Titled Tuesday Blitz"]
[Site "Chess.com"]
[Date "2020.08.11"]
[Round "1"]
[White "Enriquack"]
[Black "Anuar_Is"]
[Result "0-1"]
[WhiteElo "2340"]
[BlackElo "2680"]
[TimeControl "180+1"]
[EndTime "10:05:26 PDT"]
[Termination "Anuar_Is won by resignation"]

1. e4 {[%clk 0:03:00.3]} 1... c5 {[%clk 0:02:58.4]} 2. Nf3 {[%clk 0:02:59.9]}
2... Nc6 {[%clk 0:02:56.8]} 3. Bb5 {[%clk 0:03:00]} 3... g6 {[%clk 0:02:56.2]}
4. O-O {[%clk 0:03:00]} 4... Bg7 {[%clk 0:02:56]} 5. d3 {[%clk 0:03:00.5]} 5...
Nf6 {[%clk 0:02:54.2]} 6. Nc3 {[%clk 0:02:57.6]} 6... O-O {[%clk 0:02:53.6]} 7.
Bd2 {[%clk 0:02:56.8]} 7... d6 {[%clk 0:02:52.3]} 8. h3 {[%clk 0:02:46.2]} 8...
e5 {[%clk 0:02:52]} 9. a3 {[%clk 0:02:45.5]} 9... Nh5 {[%clk 0:02:51.4]} 10. b4
{[%clk 0:02:43.3]} 10... h6 {[%clk 0:02:45.3]} 11. Bxc6 {[%clk 0:02:39.5]} 11...
bxc6 {[%clk 0:02:45.2]} 12. bxc5 {[%clk 0:02:27.9]} 12... dxc5 {[%clk
0:02:46.1]} 13. Na4 {[%clk 0:02:27.8]} 13... c4 {[%clk 0:02:37.1]} 14. Bb4
{[%clk 0:02:27.3]} 14... Re8 {[%clk 0:02:35.5]} 15. dxc4 {[%clk 0:02:26.9]}
15... Ba6 {[%clk 0:02:29.1]} 16. Qe2 {[%clk 0:02:23.4]} 16... Nf4 {[%clk
0:02:28.5]} 17. Qe3 {[%clk 0:02:22.8]} 17... Bxc4 {[%clk 0:02:28.1]} 18. Rfd1
{[%clk 0:02:22.1]} 18... Qf6 {[%clk 0:02:26.2]} 19. Nc5 {[%clk 0:02:16.2]} 19...
Rad8 {[%clk 0:02:21.9]} 20. Nb7 {[%clk 0:02:07.1]} 20... Rxd1+ {[%clk
0:02:07.9]} 21. Rxd1 {[%clk 0:02:06.7]} 21... g5 {[%clk 0:02:02]} 22. Rd6 {[%clk
0:01:47.5]} 22... Re6 {[%clk 0:02:01.5]} 23. Kh2 {[%clk 0:01:31.4]} 23... h5
{[%clk 0:01:50.7]} 24. g3 {[%clk 0:01:22.7]} 24... g4 {[%clk 0:01:46.4]} 25.
gxf4 {[%clk 0:01:19.3]} 25... gxf3 {[%clk 0:01:46.2]} 26. f5 {[%clk 0:01:17.8]}
26... Rxd6 {[%clk 0:01:41.7]} 27. Nxd6 {[%clk 0:01:18.1]} 27... Be2 {[%clk
0:01:41.5]} 28. Ne8 {[%clk 0:01:14.3]} 28... Qh4 {[%clk 0:01:24.6]} 29. Bc3
{[%clk 0:00:51.9]} 29... Bh6 {[%clk 0:01:19.4]} 0-1

[Event "*** SCC Grand Prix: Titled Tuesday Blitz"]
[Site "Chess.com"]
[Date "2020.08.11"]
[Round "1"]
[White "Vuk2000"]
[Black "Agent-JL"]
[Result "1-0"]
[WhiteElo "2696"]
[BlackElo "2343"]
[TimeControl "180+1"]
[EndTime "10:05:31 PDT"]
[Termination "Vuk2000 won on time"]

1. d4 {[%clk 0:03:00.9]} 1... Nf6 {[%clk 0:02:55.9]} 2. Bg5 {[%clk 0:03:01.1]}
2... d5 {[%clk 0:02:53.3]} 3. Bxf6 {[%clk 0:03:01.2]} 3... exf6 {[%clk
0:02:29.7]} 4. e3 {[%clk 0:03:01]} 4... Be7 {[%clk 0:02:24.1]} 5. g3 {[%clk
0:03:01.1]} 5... c6 {[%clk 0:02:21.5]} 6. Nd2 {[%clk 0:02:58.4]} 6... h5 {[%clk
0:02:17.6]} 7. h4 {[%clk 0:02:57.5]} 7... Bf5 {[%clk 0:02:17.2]} 8. Bg2 {[%clk
0:02:55.9]} 8... a5 {[%clk 0:02:14.5]} 9. Ne2 {[%clk 0:02:55.5]} 9... Na6 {[%clk
0:02:11.6]} 10. O-O {[%clk 0:02:50.9]} 10... Qd7 {[%clk 0:02:07.8]} 11. c4
{[%clk 0:02:47.5]} 11... O-O {[%clk 0:01:27.7]} 12. cxd5 {[%clk 0:02:43]} 12...
cxd5 {[%clk 0:01:21.7]} 13. Nf4 {[%clk 0:02:43.2]} 13... Bg4 {[%clk 0:01:20.6]}
14. Qb3 {[%clk 0:02:35.8]} 14... Bb4 {[%clk 0:01:15.6]} 15. Nb1 {[%clk
0:02:29.8]} 15... Rfd8 {[%clk 0:00:58.3]} 16. Nc3 {[%clk 0:02:21.1]} 16... Bxc3
{[%clk 0:00:44.2]} 17. bxc3 {[%clk 0:02:20.9]} 17... Be6 {[%clk 0:00:32.6]} 18.
Nxh5 {[%clk 0:02:18.2]} 18... Rac8 {[%clk 0:00:16.3]} 19. Rab1 {[%clk
0:02:15.5]} 19... Rc7 {[%clk 0:00:14.6]} 20. Nf4 {[%clk 0:02:15.5]} 20... a4
{[%clk 0:00:13.1]} 21. Qb5 {[%clk 0:02:11]} 21... Bf5 {[%clk 0:00:11.3]} 22.
Qxd7 {[%clk 0:02:09.3]} 22... Rdxd7 {[%clk 0:00:11.7]} 23. Nxd5 {[%clk
0:01:49.3]} 23... Bxb1 {[%clk 0:00:05.2]} 24. Nxc7 {[%clk 0:01:49.6]} 24... Bxa2
{[%clk 0:00:01.4]} 25. Nxa6 {[%clk 0:01:50.1]} 25... bxa6 {[%clk 0:00:01.9]} 26.
Ra1 {[%clk 0:01:50.3]} 26... Bb3 {[%clk 0:00:02.1]} 27. Bc6 {[%clk 0:01:50.5]}
27... Rc7 {[%clk 0:00:02.2]} 28. Bxa4 {[%clk 0:01:50.6]} 28... Bd5 {[%clk
0:00:02.8]} 29. Rc1 {[%clk 0:01:47.2]} 29... a5 {[%clk 0:00:01.9]} 30. Bb5
{[%clk 0:01:45]} 1-0

[Event "*** SCC Grand Prix: Titled Tuesday Blitz"]
[Site "Chess.com"]
[Date "2020.08.11"]
[Round "1"]
[White "Pashinskiy_Mikhail"]
[Black "Heineccius"]
[Result "0-1"]
[WhiteElo "2260"]
[BlackElo "2613"]
[TimeControl "180+1"]
[EndTime "10:05:31 PDT"]
[Termination "Heineccius won on time"]

1. e4 {[%clk 0:03:00.1]} 1... c5 {[%clk 0:02:59.2]} 2. Nc3 {[%clk 0:02:59.7]}
2... e6 {[%clk 0:02:59.4]} 3. Nge2 {[%clk 0:02:59.2]} 3... Nc6 {[%clk
0:02:59.6]} 4. g3 {[%clk 0:02:58.5]} 4... d5 {[%clk 0:02:56.8]} 5. exd5 {[%clk
0:02:58.1]} 5... exd5 {[%clk 0:02:57.7]} 6. Bg2 {[%clk 0:02:51.5]} 6... d4
{[%clk 0:02:55.8]} 7. Nd5 {[%clk 0:02:47.6]} 7... Nf6 {[%clk 0:02:47.8]} 8. Nef4
{[%clk 0:02:41.2]} 8... Nxd5 {[%clk 0:02:37.5]} 9. Nxd5 {[%clk 0:02:42.1]} 9...
Be6 {[%clk 0:02:30.9]} 10. Nf4 {[%clk 0:02:40]} 10... Bf5 {[%clk 0:02:13.1]} 11.
O-O {[%clk 0:02:33.6]} 11... Be7 {[%clk 0:02:12.2]} 12. Nd5 {[%clk 0:02:31.2]}
12... O-O {[%clk 0:02:09.1]} 13. Nxe7+ {[%clk 0:02:30.1]} 13... Qxe7 {[%clk
0:02:06.7]} 14. d3 {[%clk 0:02:25]} 14... Qd7 {[%clk 0:02:05.6]} 15. Re1 {[%clk
0:02:20.4]} 15... Rfe8 {[%clk 0:01:54.5]} 16. Bd2 {[%clk 0:02:15.3]} 16... Bg4
{[%clk 0:01:47.5]} 17. f3 {[%clk 0:01:55.9]} 17... Bh3 {[%clk 0:01:37.8]} 18.
Rxe8+ {[%clk 0:01:52.4]} 18... Rxe8 {[%clk 0:01:36]} 19. Bxh3 {[%clk 0:01:47.7]}
19... Qxh3 {[%clk 0:01:35.2]} 0-1